bitfinex/quotes_BTCUSD_20250902
["timestamp","ask_amount","ask_price","bid_price","bid_amount"]
[1756831481532,1.35159765,110800.0,110790.0,0.00438]
[1756831482261,1.35159765,110800.0,110790.0,0.0024]
[1756831482765,1.50663765,110800.0,110790.0,0.0024]
[1756831482968,1.09206153,110800.0,110790.0,0.00438]
[1756831483399,1.09526153,110800.0,110790.0,0.00438]
[1756831483722,1.09526153,110800.0,110790.0,0.0024]
[1756831483924,1.35167765,110800.0,110790.0,0.0024]
[1756831485166,1.52604826,110800.0,110790.0,0.0024]
[1756831487124,1.55588953,110800.0,110790.0,0.0024]
[1756831487330,1.56221462,110800.0,110790.0,0.0024]
[1756831488051,1.67827437,110800.0,110790.0,0.0024]
[1756831488646,1.71068555,110800.0,110790.0,0.0024]
[1756831489076,1.55364555,110800.0,110790.0,0.0004]
[1756831489239,1.68550179,110800.0,110790.0,0.0024]
[1756831489438,1.68450179,110800.0,110790.0,0.0024]
[1756831489701,1.6835132,110800.0,110790.0,0.0004]
[1756831489882,1.6865132,110800.0,110790.0,0.0004]
[1756831490053,1.6875132,110800.0,110790.0,0.0024]
[1756831490235,1.73621387,110800.0,110790.0,0.0024]
[1756831490515,1.76194973,110800.0,110790.0,0.0024]
[1756831490695,1.78988973,110800.0,110790.0,0.0024]
[1756831491017,1.79350854,110800.0,110790.0,0.0024]
[1756831491716,1.76477268,110800.0,110790.0,0.0024]
[1756831492357,1.60977268,110800.0,110790.0,0.0024]
[1756831492599,1.73973146,110800.0,110790.0,0.0024]
[1756831492814,1.70989019,110800.0,110790.0,0.0024]
[1756831493433,1.73973146,110800.0,110790.0,0.0024]
[1756831495815,1.73969146,110800.0,110790.0,0.0024]
[1756831498503,1.76842732,110800.0,110790.0,0.0024]
[1756831498879,1.78533775,110800.0,110790.0,0.0024]
[1756831499151,1.75660189,110800.0,110790.0,0.0024]
[1756831499353,1.72429193,110800.0,110790.0,0.0024]
[1756831500912,1.56933193,110800.0,110790.0,0.0024]
[1756831501120,0.60302611,110800.0,110790.0,0.00739]
[1756831501327,0.98949262,110800.0,110790.0,0.00739]
[1756831501544,0.21379133,110800.0,110790.0,0.02832882]
[1756831501762,0.62162864,110800.0,110790.0,0.02832882]
[1756831502182,0.96162864,110800.0,110790.0,0.02832882]
[1756831502331,0.95862864,110800.0,110790.0,0.02832882]
[1756831502545,0.95762864,110800.0,110790.0,0.02632882]
[1756831502738,0.96062864,110800.0,110790.0,0.02632882]
[1756831503118,0.95762864,110800.0,110790.0,0.02632882]
[1756831503314,0.95329214,110800.0,110790.0,0.02531882]
[1756831503521,0.9616954,110800.0,110790.0,0.02531882]
[1756831503732,0.9596354,110800.0,110790.0,0.02531882]
[1756831503928,0.9596354,110800.0,110790.0,0.02832882]
[1756831504510,0.95129214,110800.0,110790.0,0.02632882]
[1756831504802,0.95129214,110800.0,110790.0,0.02932882]
[1756831505115,0.95229214,110800.0,110790.0,0.02932882]
[1756831505750,1.39884953,110800.0,110790.0,0.02433882]
[1756831505952,1.40619248,110800.0,110790.0,0.02631882]
[1756831506155,1.40619248,110800.0,110790.0,0.02433882]
[1756831506365,1.40619248,110800.0,110790.0,0.0034]
[1756831506583,1.56111248,110800.0,110790.0,0.0034]
[1756831506784,1.58535765,110800.0,110790.0,0.0034]
[1756831506995,1.75525026,110800.0,110790.0,0.0034]
[1756831507202,1.78238918,110800.0,110790.0,0.0034]
[1756831508744,1.75814401,110800.0,110790.0,0.0034]
[1756831508976,1.78237671,110800.0,110790.0,0.0034]
[1756831509157,1.78237489,110800.0,110790.0,0.0034]
[1756831509354,1.75814401,110800.0,110790.0,0.0034]
[1756831509562,1.7823737,110800.0,110790.0,0.0034]
[1756831509776,1.75814401,110800.0,110790.0,0.0034]
[1756831510834,1.75610401,110800.0,110790.0,0.0004]
[1756831511244,1.78133589,110800.0,110790.0,0.0024]
[1756831512164,1.75910401,110800.0,110790.0,0.0024]
[1756831512368,1.81346719,110790.0,110780.0,0.0004]
[1756831512575,2.1270748,110790.0,110780.0,0.0004]
[1756831512789,2.10327894,110790.0,110780.0,0.0004]
[1756831512995,1.69182282,110790.0,110780.0,0.0004]
[1756831513615,1.53794282,110790.0,110780.0,0.0004]
[1756831513828,0.83512931,110790.0,110780.0,0.0056]
[1756831514039,1.65804155,110790.0,110780.0,0.0025]
[1756831514215,1.66002155,110790.0,110780.0,0.0025]
[1756831514620,1.66102155,110790.0,110780.0,0.0035]
[1756831514800,1.69112347,110790.0,110780.0,0.0014]
[1756831515408,1.53624347,110790.0,110780.0,0.0014]
[1756831515608,1.69112347,110790.0,110780.0,0.0014]
[1756831515941,1.68816347,110790.0,110780.0,0.0035]
[1756831516111,1.69112347,110790.0,110780.0,0.0014]
[1756831516702,1.53624347,110790.0,110780.0,0.0014]
[1756831516901,1.44136748,110790.0,110780.0,0.0035]
[1756831517121,1.5279675,110790.0,110780.0,0.0035]
[1756831517343,1.3730875,110790.0,110780.0,0.0014]
[1756831517502,1.3760475,110790.0,110780.0,0.0014]
[1756831517918,1.5309275,110790.0,110780.0,0.0014]
[1756831518747,2.06414088,110790.0,110780.0,0.0014]
[1756831518947,1.65268476,110790.0,110780.0,0.0014]
[1756831519197,1.64634181,110790.0,110780.0,0.0014]
[1756831519390,1.65268425,110790.0,110780.0,0.0014]
[1756831520280,2.09287623,110790.0,110780.0,0.0014]
[1756831520483,2.07994642,110790.0,110780.0,1e-08]
[1756831520686,0.21037926,110780.0,110770.0,0.0004]
[1756831520939,0.88792198,110780.0,110770.0,0.0004]
[1756831521142,0.87057137,110780.0,110770.0,0.0004]
[1756831521357,0.74583621,110780.0,110770.0,0.0004]
[1756831521564,0.90067621,110780.0,110770.0,0.0004]
[1756831522185,0.90167621,110780.0,110770.0,0.0004]
[1756831522341,0.90267621,110780.0,110770.0,0.0014]
[1756831523151,1.33349712,110780.0,110770.0,0.0014]
[1756831523373,1.33349605,110780.0,110770.0,0.0014]
[1756831523839,1.70223191,110780.0,110770.0,0.0014]
[1756831524565,0.88565973,110780.0,110770.0,0.0014]
[1756831524764,1.70857197,110780.0,110770.0,0.0014]
[1756831524967,1.55373197,110780.0,110770.0,0.0014]
[1756831525147,1.70857197,110780.0,110770.0,0.0014]
[1756831525551,1.55373197,110780.0,110770.0,0.0014]
[1756831525758,1.67983611,110780.0,110770.0,0.0014]
[1756831526303,1.67249605,110780.0,110770.0,0.0014]
[1756831526538,1.6788344,110780.0,110770.0,0.0014]
[1756831526747,1.70757026,110780.0,110770.0,1e-08]
[1756831526953,0.1805869,110750.0,110740.0,0.08767882]
[1756831527197,0.62386429,110750.0,110740.0,0.0021]
[1756831527861,0.59204302,110750.0,110740.0,0.0021]
[1756831528058,0.59204302,110750.0,110740.0,0.0052]
[1756831528477,0.59204302,110750.0,110740.0,0.0021]
[1756831528661,0.6032399,110750.0,110740.0,0.0062]
[1756831529911,0.59404302,110750.0,110740.0,0.02713882]
[1756831531186,0.59404302,110750.0,110740.0,0.36365296]
[1756831531187,0.1825869,110750.0,110740.0,0.36365296]
[1756831531345,0.1825869,110750.0,110740.0,0.18197882]
[1756831531546,0.1825869,110750.0,110740.0,0.18304975]
[1756831531547,0.59424728,110750.0,110740.0,0.18304975]
[1756831531900,0.59424728,110750.0,110740.0,0.36365296]
[1756831532107,0.59424728,110750.0,110740.0,0.18197882]
[1756831532308,0.59424728,110750.0,110740.0,0.18304975]
[1756831532533,0.002,110750.0,110740.0,0.45556895]
[1756831532756,0.002,110750.0,110740.0,0.8661584]
[1756831532997,0.002,110750.0,110740.0,0.45449802]
[1756831533217,0.002,110750.0,110740.0,0.8661584]
[1756831533438,0.002,110750.0,110740.0,0.45449802]
[1756831534075,0.002,110750.0,110740.0,0.8661584]
[1756831534767,0.002,110750.0,110740.0,0.45449802]
[1756831534980,0.002,110750.0,110740.0,0.45445802]
[1756831535612,0.59424728,110750.0,110740.0,0.45445802]
[1756831535823,0.59424728,110750.0,110740.0,0.29965802]
[1756831536028,0.1825869,110750.0,110740.0,0.45445802]
[1756831536233,0.59424728,110750.0,110740.0,0.45445802]
[1756831537095,0.59424728,110750.0,110740.0,0.11905481]
[1756831537473,0.59424728,110750.0,110740.0,0.27385481]
[1756831537677,0.1825869,110750.0,110740.0,0.27385481]
[1756831538089,0.59424728,110750.0,110740.0,0.27385481]
[1756831538322,0.59424728,110750.0,110740.0,0.45445802]
[1756831538500,0.002,110750.0,110740.0,0.45445802]
[1756831538662,0.59424728,110750.0,110740.0,0.45445802]
[1756831538881,0.41366038,110750.0,110740.0,0.45445802]
[1756831539078,0.002,110750.0,110740.0,0.45445802]
[1756831539442,0.59424728,110750.0,110740.0,0.45445802]
[1756831539742,0.1825869,110750.0,110740.0,0.45445802]
[1756831539955,0.59424728,110750.0,110740.0,0.45445802]
[1756831540143,0.002,110750.0,110740.0,0.45445802]
[1756831540597,0.1825869,110750.0,110740.0,0.29965802]
[1756831540775,0.1825869,110750.0,110740.0,0.45445802]
[1756831540997,0.59424728,110750.0,110740.0,0.29965802]
[1756831541198,0.59424728,110750.0,110740.0,0.45445802]
[1756831541407,0.59424728,110750.0,110740.0,0.11595481]
[1756831541618,0.59622728,110750.0,110740.0,0.27075481]
[1756831541825,0.59424728,110750.0,110740.0,0.45135802]
[1756831542070,0.1825869,110750.0,110740.0,0.45458802]
[1756831542295,0.59424728,110750.0,110740.0,0.45458802]
[1756831542707,0.41366038,110750.0,110740.0,0.45458802]
[1756831543318,0.59424728,110750.0,110740.0,0.45454802]
[1756831543527,0.002,110750.0,110740.0,0.45454802]
[1756831544161,0.002,110750.0,110740.0,0.29978802]
[1756831544335,0.002,110750.0,110740.0,0.45454802]
[1756831544949,0.002,110750.0,110740.0,0.72374802]
[1756831547384,0.41366038,110750.0,110740.0,0.72374802]
[1756831547787,0.59424728,110750.0,110740.0,0.72374802]
[1756831548550,0.41366038,110750.0,110740.0,0.72374802]
[1756831548927,0.41366038,110750.0,110740.0,0.56575802]
[1756831549130,0.59424728,110750.0,110740.0,0.72051802]
[1756831549573,0.41366038,110750.0,110740.0,0.72374802]
[1756831549779,0.002,110750.0,110740.0,0.72374802]
[1756831550783,0.002,110750.0,110740.0,0.78738802]
[1756831551529,0.41366038,110750.0,110740.0,0.78738802]
[1756831551745,0.002,110750.0,110740.0,0.78738802]
[1756831552414,0.41366038,110750.0,110740.0,0.78738802]
[1756831552720,0.59622728,110750.0,110740.0,0.62939802]
[1756831552919,0.59424728,110750.0,110740.0,0.78411802]
[1756831553268,0.002,110750.0,110740.0,0.78734802]
[1756831553485,0.41366038,110750.0,110740.0,0.78734802]
[1756831554871,0.59424728,110750.0,110740.0,0.62939802]
[1756831555178,0.59622728,110750.0,110740.0,0.78411802]
[1756831555402,0.59622728,110750.0,110740.0,0.62939802]
[1756831555635,0.59923728,110750.0,110740.0,0.78201802]
[1756831555880,0.59923728,110750.0,110740.0,0.78409802]
[1756831556727,0.59622728,110750.0,110740.0,0.51489802]
[1756831557503,0.59923728,110750.0,110740.0,0.51489802]
[1756831558525,0.41366038,110750.0,110740.0,0.51812802]
[1756831558728,0.41366038,110750.0,110740.0,0.51489802]
[1756831558933,0.59622728,110750.0,110740.0,0.51489802]
[1756831559374,0.41366038,110750.0,110740.0,0.51812802]
[1756831559554,0.41366038,110750.0,110740.0,0.51489802]
[1756831560264,0.002,110750.0,110740.0,0.51489802]
[1756831560561,0.41366038,110750.0,110740.0,0.51489802]
[1756831560708,0.002,110750.0,110740.0,0.51489802]
[1756831560917,0.41366038,110750.0,110740.0,0.51812802]
[1756831561332,0.002,110750.0,110740.0,0.9297884]
[1756831561786,0.002,110750.0,110740.0,1.34144878]
[1756831561941,0.002,110750.0,110740.0,1.77357287]
[1756831562142,0.002,110750.0,110740.0,1.73120649]
[1756831562376,0.002,110750.0,110740.0,1.81237427]
[1756831562591,0.002,110750.0,110740.0,1.81233427]
[1756831563109,0.60423577,110780.0,110770.0,0.1805543]
[1756831563371,0.60423577,110780.0,110770.0,0.49079029]
[1756831563583,0.59718887,110780.0,110770.0,0.49079029]
[1756831564022,0.18552849,110780.0,110770.0,0.33611029]
[1756831564217,0.41665038,110780.0,110770.0,0.49079029]
[1756831564556,0.41665038,110780.0,110770.0,0.49287029]
[1756831564763,0.41665038,110780.0,110770.0,0.49079029]
[1756831564993,0.41665038,110780.0,110770.0,0.49179029]
[1756831565166,0.59718838,110780.0,110770.0,0.49179029]
[1756831565983,0.59918838,110780.0,110770.0,0.49279029]
[1756831567292,0.187528,110780.0,110770.0,0.49487029]
[1756831567511,0.59918838,110780.0,110770.0,0.49279029]
[1756831567737,0.59918838,110780.0,110770.0,0.31223599]
[1756831567945,1.01084876,110780.0,110770.0,0.49275029]
[1756831569035,1.01084876,110780.0,110770.0,0.15755599]
[1756831569236,1.01084876,110780.0,110770.0,0.31219599]
[1756831569638,1.01084876,110780.0,110770.0,0.24121882]
[1756831570049,1.04069003,110780.0,110770.0,0.24121882]
[1756831570185,1.04069003,110780.0,110770.0,0.02293882]
[1756831570400,1.04069003,110780.0,110770.0,0.17757882]
[1756831570607,1.38069003,110780.0,110770.0,0.15664]
[1756831570801,1.38069003,110780.0,110770.0,0.002]
[1756831571042,1.38069003,110780.0,110770.0,0.15664]
[1756831571689,1.35084876,110780.0,110770.0,0.15664]
[1756831572494,1.37798994,110780.0,110770.0,0.17757882]
[1756831572674,1.35084876,110780.0,110770.0,0.17757882]
[1756831574092,0.187528,110780.0,110770.0,0.17955882]
[1756831574298,0.59918838,110780.0,110770.0,0.17955882]
[1756831574501,0.59918838,110780.0,110770.0,0.17757882]
[1756831574707,1.01084876,110780.0,110770.0,0.17757882]
[1756831576678,0.187528,110780.0,110770.0,0.17757882]
[1756831576883,0.182538,110780.0,110770.0,0.8647589]
[1756831577095,0.187468,110780.0,110770.0,0.27147481]
[1756831577294,0.182538,110780.0,110770.0,0.45202911]
[1756831578110,0.184518,110780.0,110770.0,0.45202911]
[1756831578849,0.187468,110780.0,110770.0,0.29738911]
[1756831579020,0.187468,110780.0,110770.0,0.26945481]
[1756831579226,0.187468,110780.0,110770.0,0.11485481]
[1756831579431,0.59912838,110780.0,110770.0,0.26945481]
[1756831579638,0.59912838,110780.0,110770.0,0.11485481]
[1756831579852,0.59912838,110780.0,110770.0,0.17753882]
[1756831580283,1.01078876,110780.0,110770.0,0.17753882]
[1756831581722,0.59912838,110780.0,110770.0,0.02293882]
[1756831581933,0.59912838,110780.0,110770.0,0.002]
[1756831581934,1.04063003,110780.0,110770.0,0.002]
[1756831582140,1.04063003,110780.0,110770.0,0.1566]
[1756831582141,1.40519003,110780.0,110770.0,0.1566]
[1756831582756,1.40519003,110780.0,110770.0,0.002]
[1756831582963,1.40519003,110780.0,110770.0,0.1566]
[1756831583572,1.40492915,110780.0,110770.0,0.1566]
[1756831585239,0.96870877,110780.0,110770.0,0.1566]
[1756831585462,0.9388675,110780.0,110770.0,0.15858]
[1756831585680,0.9388675,110780.0,110770.0,0.1566]
[1756831586127,0.52425712,110780.0,110770.0,0.17951882]
[1756831586315,0.52425712,110780.0,110770.0,0.36007312]
[1756831586316,0.52227712,110780.0,110770.0,0.36007312]
[1756831587353,0.52425712,110780.0,110770.0,0.17951882]
[1756831587821,0.52720712,110780.0,110770.0,0.17753882]
[1756831588240,0.52720712,110780.0,110770.0,0.17951882]
[1756831588626,0.52425712,110780.0,110770.0,0.17951882]
[1756831588836,0.52720712,110780.0,110770.0,0.17951882]
[1756831589044,0.52227712,110780.0,110770.0,0.36007312]
[1756831589247,0.18227712,110780.0,110770.0,0.36311312]
[1756831589665,0.18227712,110780.0,110770.0,0.36007312]
[1756831589869,0.18227712,110780.0,110770.0,0.36311312]
[1756831590077,0.002,110780.0,110770.0,0.45502911]
[1756831590505,0.182538,110780.0,110770.0,0.45502911]
[1756831591126,0.182538,110780.0,110770.0,0.11683481]
[1756831591557,0.182538,110780.0,110770.0,0.45194911]
[1756831591771,0.182538,110780.0,110770.0,0.4925087]
[1756831592413,0.182538,110780.0,110770.0,0.4955487]
[1756831592816,0.182538,110780.0,110770.0,0.3119544]
[1756831593026,0.184518,110780.0,110770.0,0.1573944]
[1756831593232,0.184518,110780.0,110770.0,0.3119544]
[1756831593451,0.182538,110780.0,110770.0,0.3119544]
[1756831593680,0.182538,110780.0,110770.0,0.4925087]
[1756831594116,0.002,110780.0,110770.0,0.4955487]
[1756831594326,0.182538,110780.0,110770.0,0.4955487]
[1756831594533,0.002,110780.0,110770.0,0.4955487]
[1756831594920,0.182538,110780.0,110770.0,0.4955487]
[1756831595128,0.002,110780.0,110770.0,0.4955487]
[1756831595331,0.002,110780.0,110770.0,0.7647487]
[1756831595954,0.17832197,110790.0,110780.0,0.20147682]
[1756831596216,0.17832197,110790.0,110780.0,0.35703281]
[1756831596442,0.17832197,110790.0,110780.0,0.17847481]
[1756831596675,0.17832197,110790.0,110780.0,0.17954371]
[1756831597339,0.18032197,110790.0,110780.0,0.36108171]
[1756831597554,0.18032197,110790.0,110780.0,0.36001281]
[1756831598179,0.18132197,110790.0,110780.0,0.17947481]
[1756831598406,0.18132197,110790.0,110780.0,0.18054371]
[1756831598653,0.18330197,110790.0,110780.0,0.33506371]
[1756831598916,0.18330197,110790.0,110780.0,0.17947481]
[1756831599121,0.18330197,110790.0,110780.0,0.33506371]
[1756831599282,0.18132197,110790.0,110780.0,0.33399481]
[1756831599511,0.18132197,110790.0,110780.0,0.51453281]
[1756831600100,0.003,110790.0,110780.0,0.51764281]
[1756831600318,0.003,110790.0,110780.0,0.78684281]
[1756831601426,0.003,110790.0,110780.0,0.36312281]
[1756831601634,0.003,110790.0,110780.0,0.51453281]
[1756831601857,0.003,110790.0,110780.0,0.51764281]
[1756831602101,0.001,110790.0,110780.0,0.51664281]
[1756831602343,0.1805217,110790.0,110780.0,0.51664281]
[1756831602551,0.1825617,110790.0,110780.0,0.17649481]
[1756831602781,0.21545297,110790.0,110780.0,0.08757882]
[1756831602977,0.88249107,110790.0,110780.0,0.24209882]
[1756831603629,0.88349107,110790.0,110780.0,0.24709882]
[1756831603836,0.88249107,110790.0,110780.0,0.15752]
[1756831604227,0.21645297,110790.0,110780.0,0.15952]
[1756831604440,0.91062916,110790.0,110780.0,0.002]
[1756831604643,0.91062916,110790.0,110780.0,0.15752]
[1756831604841,0.88078789,110790.0,110780.0,0.15752]
[1756831605211,0.88078789,110790.0,110780.0,0.15652]
[1756831605411,0.88078789,110790.0,110780.0,0.15752]
[1756831605986,0.55374979,110790.0,110780.0,0.15752]
[1756831606246,1.22078789,110790.0,110780.0,0.003]
[1756831606453,1.25062916,110790.0,110780.0,0.15752]
[1756831607308,1.25062916,110790.0,110780.0,0.003]
[1756831607528,1.25062916,110790.0,110780.0,0.15748]
[1756831607741,1.25062916,110790.0,110780.0,0.003]
[1756831607742,1.42845916,110790.0,110780.0,0.003]
[1756831607951,1.5397274,110790.0,110780.0,0.003]
[1756831608812,1.52037515,110790.0,110780.0,0.003]
[1756831608991,1.53972751,110790.0,110780.0,0.003]
[1756831609256,0.87268941,110790.0,110780.0,0.002]
[1756831609468,0.1805543,110770.0,110760.0,0.15448]
[1756831609675,0.18337546,110770.0,110760.0,0.15448]
[1756831609886,0.18846546,110770.0,110760.0,0.15448]
[1756831610108,0.1856443,110770.0,110760.0,0.15448]
[1756831610547,0.21278698,110770.0,110760.0,0.15448]
[1756831611403,0.21378698,110770.0,110760.0,0.15448]
[1756831611616,0.21478698,110770.0,110760.0,0.15648]
[1756831614176,0.21478698,110770.0,110760.0,0.15851]
[1756831614607,0.21478698,110770.0,110760.0,0.15648]
[1756831615490,0.21478698,110770.0,110760.0,0.15851]
[1756831616137,0.21173698,110770.0,110760.0,0.17944882]
[1756831616354,0.1825543,110770.0,110760.0,0.45504541]
[1756831616771,0.1825543,110770.0,110760.0,0.30056541]
[1756831616979,0.1825543,110770.0,110760.0,0.27447481]
[1756831617309,0.1825543,110770.0,110760.0,0.45504541]
[1756831617782,0.1825543,110770.0,110760.0,0.27136481]
[1756831618229,0.1876443,110770.0,110760.0,0.26933481]
[1756831619165,0.1876443,110770.0,110760.0,0.27136481]
[1756831619575,0.1876443,110770.0,110760.0,0.17944882]
[1756831620641,0.1825543,110770.0,110760.0,0.17944882]
[1756831621124,0.1845943,110770.0,110760.0,0.17944882]
[1756831621660,0.1825543,110770.0,110760.0,0.18255882]
[1756831621868,0.1825543,110770.0,110760.0,0.36312942]
[1756831622989,0.1825543,110770.0,110760.0,0.45504541]
[1756831623189,0.1825543,110770.0,110760.0,0.27447481]
[1756831624033,0.1825543,110770.0,110760.0,0.45504541]
[1756831624465,0.1825543,110770.0,110760.0,0.11999481]
[1756831624673,0.1845943,110770.0,110760.0,0.45300532]
[1756831624878,0.1825543,110770.0,110760.0,0.45193541]
[1756831625084,0.1825543,110770.0,110760.0,0.45504541]
[1756831626035,0.1825543,110770.0,110760.0,0.45193541]
[1756831626262,0.1825543,110770.0,110760.0,0.45504541]
[1756831626818,0.002,110770.0,110760.0,0.45504541]
[1756831627041,0.002,110770.0,110760.0,1.12208351]
[1756831627721,0.002,110770.0,110760.0,1.12204351]
[1756831627944,0.002,110770.0,110760.0,1.39124351]
[1756831628625,0.002,110770.0,110760.0,1.12204351]
[1756831628850,0.002,110770.0,110760.0,1.52703575]
[1756831629555,0.002,110770.0,110760.0,1.95416873]
[1756831629770,0.002,110770.0,110760.0,2.10955913]
[1756831629989,0.001,110770.0,110760.0,2.10755913]
[1756831630422,0.07354631,110820.0,110810.0,0.20142794]
[1756831630634,0.07354631,110820.0,110810.0,0.92763818]
[1756831630853,0.20758606,110830.0,110820.0,0.20141165]
[1756831631059,0.18250717,110830.0,110820.0,0.02300882]
[1756831631264,0.21275335,110830.0,110820.0,0.02200568]
[1756831631737,0.21275335,110830.0,110820.0,0.20454851]
[1756831631942,0.20963335,110830.0,110820.0,0.20148165]
[1756831632152,0.21375335,110830.0,110820.0,0.17544882]
[1756831632360,0.21375335,110830.0,110820.0,0.17651568]
[1756831632562,0.21775335,110830.0,110820.0,0.17751568]
[1756831632770,0.21775335,110830.0,110820.0,0.17544568]
[1756831633227,0.21775335,110830.0,110820.0,0.35591851]
[1756831633453,0.21375335,110830.0,110820.0,0.17337882]
[1756831633854,0.21375335,110830.0,110820.0,0.17544882]
[1756831634062,0.21375335,110830.0,110820.0,0.17337882]
[1756831634639,0.21275335,110830.0,110820.0,0.17337882]
[1756831634839,0.21375335,110830.0,110820.0,0.17437882]
[1756831635180,0.21275335,110830.0,110820.0,0.17337882]
[1756831635387,0.21275335,110830.0,110820.0,0.17837882]
[1756831635595,0.21375335,110830.0,110820.0,0.17837882]
[1756831635807,0.21375335,110830.0,110820.0,0.18037882]
[1756831636398,0.20858335,110830.0,110820.0,0.18244882]
[1756831636613,0.20858335,110830.0,110820.0,0.36292165]
[1756831637513,0.21063335,110830.0,110820.0,0.36292165]
[1756831637719,0.21063335,110830.0,110820.0,0.02800882]
[1756831638222,0.21375335,110830.0,110820.0,0.18240882]
[1756831639090,0.001,110830.0,110820.0,1.12415632]
[1756831640113,0.001,110830.0,110820.0,0.30332764]
[1756831640319,0.001,110830.0,110820.0,1.12411632]
[1756831641171,0.001,110830.0,110820.0,0.45768764]
[1756831642542,0.001,110830.0,110820.0,1.12118632]
[1756831642744,0.001,110830.0,110820.0,1.12411632]
[1756831642956,0.001,110830.0,110820.0,1.39331632]
[1756831643189,0.001,110830.0,110820.0,1.39038632]
[1756831643880,0.001,110830.0,110820.0,1.39331632]
[1756831644595,0.001,110830.0,110820.0,1.12411632]
[1756831645055,0.001,110830.0,110820.0,0.96975632]
[1756831645475,0.001,110830.0,110820.0,1.12407632]
[1756831645892,0.001,110830.0,110820.0,0.96975632]
[1756831646094,0.001,110830.0,110820.0,1.12407632]
[1756831647668,0.001,110830.0,110820.0,1.86407632]
[1756831649530,0.001,110830.0,110820.0,1.70975632]
[1756831649750,0.001,110830.0,110820.0,1.86407632]
[1756831650157,0.001,110830.0,110820.0,1.70975632]
[1756831650416,0.001,110830.0,110820.0,1.86407632]
[1756831650624,0.001,110830.0,110820.0,1.19764764]
[1756831650865,0.001,110830.0,110820.0,1.86407632]
[1756831651479,0.001,110830.0,110820.0,2.01936782]
[1756831651893,0.001,110830.0,110820.0,1.19764764]
[1756831652125,0.001,110830.0,110820.0,2.01936782]
[1756831653608,0.001,110830.0,110820.0,2.43008178]
[1756831653823,0.00305,110830.0,110820.0,1.8620204]
[1756831654008,0.00617,110830.0,110820.0,2.0163004]
[1756831654242,0.001,110830.0,110820.0,2.0192304]
[1756831654872,0.001,110830.0,110820.0,1.6192304]
[1756831655312,0.001,110830.0,110820.0,1.64634962]
[1756831656221,0.001,110830.0,110820.0,2.057161]
[1756831657101,0.001,110830.0,110820.0,2.055161]
[1756831657337,0.18353073,110860.0,110850.0,0.18042399]
[1756831657554,0.18558073,110860.0,110850.0,0.90103136]
[1756831658390,0.18558073,110860.0,110850.0,0.49021998]
[1756831658601,0.18558073,110860.0,110850.0,0.90203136]
[1756831658810,0.18558073,110860.0,110850.0,0.31075599]
[1756831659024,0.18558073,110860.0,110850.0,0.72156737]
[1756831659232,0.18658073,110860.0,110850.0,0.31175599]
[1756831660083,0.00617,110860.0,110850.0,0.49217998]
[1756831660304,0.18657772,110860.0,110850.0,0.90299136]
[1756831660525,0.18657772,110860.0,110850.0,0.31175599]
[1756831660736,0.18657772,110860.0,110850.0,0.72256737]
[1756831661394,0.18657772,110860.0,110850.0,0.31175599]
[1756831661611,0.18657772,110860.0,110850.0,0.15751599]
[1756831661823,0.5973891,110860.0,110850.0,0.24077882]
[1756831662044,0.18657772,110860.0,110850.0,0.21984]
[1756831662284,0.5973891,110860.0,110850.0,0.21984]
[1756831663028,1.37196048,110860.0,110850.0,0.002]
[1756831663273,1.37196048,110860.0,110850.0,0.15624]
[1756831663452,1.39764137,110860.0,110850.0,0.15624]
[1756831664230,1.37829186,110860.0,110850.0,0.15524]
[1756831664435,0.57602083,110860.0,110850.0,0.15524]
[1756831664820,0.9611491,110860.0,110850.0,0.15524]
[1756831665422,0.9363891,110860.0,110850.0,0.15424]
[1756831665636,0.55269839,110860.0,110850.0,0.15424]
[1756831665792,0.55369839,110860.0,110850.0,0.15524]
[1756831666004,0.21369839,110860.0,110850.0,0.5869902]
[1756831666274,0.55369839,110860.0,110850.0,0.5869902]
[1756831666452,0.55369839,110860.0,110850.0,0.17617882]
[1756831668327,0.55369839,110860.0,110850.0,0.59018553]
[1756831668328,0.18657772,110860.0,110850.0,0.59018553]
[1756831668538,0.5973891,110860.0,110850.0,0.17830882]
[1756831668738,0.18140772,110860.0,110850.0,0.86252551]
[1756831668938,0.18140772,110860.0,110850.0,0.4506488]
[1756831669744,0.001,110860.0,110850.0,0.4506488]
[1756831670236,0.18140772,110860.0,110850.0,0.4506488]
[1756831670432,0.18140772,110860.0,110850.0,0.86146018]
[1756831670642,0.18140772,110860.0,110850.0,0.4506488]
[1756831671489,0.18351772,110860.0,110850.0,0.4506488]
[1756831672324,0.001,110860.0,110850.0,0.86146018]
[1756831672548,0.18140772,110860.0,110850.0,0.86146018]
[1756831673169,0.18140772,110860.0,110850.0,0.4506488]
[1756831673649,0.18657772,110860.0,110850.0,0.45744294]
[1756831674093,0.18657772,110860.0,110850.0,0.45957294]
[1756831674304,0.18657772,110860.0,110850.0,0.11385481]
[1756831674487,0.18657772,110860.0,110850.0,0.4484788]
[1756831675680,0.5973891,110860.0,110850.0,0.4484788]
[1756831676102,0.5973891,110860.0,110850.0,0.4506088]
[1756831676303,0.5973891,110860.0,110850.0,0.07561218]
[1756831676554,0.5973891,110860.0,110850.0,0.07348218]
[1756831676780,1.00820048,110860.0,110850.0,0.22768218]
[1756831676999,0.5973891,110860.0,110850.0,0.22768218]
[1756831677198,0.18657772,110860.0,110850.0,0.22768218]
[1756831677451,0.61679937,110860.0,110850.0,0.22768218]
[1756831677655,0.61679937,110860.0,110850.0,0.29128218]
[1756831678070,1.02761075,110860.0,110850.0,0.29128218]
[1756831678270,1.02761075,110860.0,110850.0,0.0636]
[1756831678677,1.02761075,110860.0,110850.0,0.2178]
[1756831679284,0.18946228,110840.0,110830.0,0.0636]
[1756831679454,1.37049531,110840.0,110830.0,0.0636]
[1756831679651,1.39686133,110840.0,110830.0,0.2178]
[1756831679857,1.42704699,110840.0,110830.0,0.2178]
[1756831680315,0.18048912,110810.0,110800.0,0.20179]
[1756831680481,0.59129882,110820.0,110800.0,1.10282278]
[1756831680651,0.19989262,110820.0,110810.0,0.29547393]
[1756831680857,0.18048744,110820.0,110810.0,0.29547393]
[1756831681495,0.18048744,110820.0,110810.0,0.29850393]
[1756831681882,0.18048744,110820.0,110810.0,0.29547393]
[1756831682086,0.18259744,110820.0,110810.0,0.11698481]
[1756831682287,0.18359744,110820.0,110810.0,0.11698481]
[1756831682524,0.18565744,110820.0,110810.0,0.11698481]
[1756831682928,0.18665744,110820.0,110810.0,0.11998481]
[1756831683364,0.18359744,110820.0,110810.0,0.11998481]
[1756831683605,1.0082802,110820.0,110810.0,0.02593882]
[1756831683810,1.0082802,110820.0,110810.0,0.005]